bitfinex/quotes_ETHUSD_20250220
["timestamp","ask_amount","ask_price","bid_price","bid_amount"]
[1740084998933,7.26683,2752.3,2751.7,0.265]
[1740084999145,3.63346,2752.2,2751.7,0.265]
[1740084999344,3.63332,2752.3,2751.7,3.8991]
[1740085000233,7.26675,2752.3,2751.7,3.8991]
[1740085000636,3.0075,2752.4,2751.7,0.265]
[1740085000934,3.63357,2752.2,2751.7,0.265]
[1740085001470,3.0,2752.4,2751.7,0.265]
[1740085001775,0.7891,2752.5,2751.7,0.265]
[1740085001776,5.36,2752.6,2752.0,3.63368]
[1740085002663,5.36,2752.6,2752.1,0.7513]
[1740085002866,5.36,2752.6,2752.1,4.38488]
[1740085003046,5.36,2752.6,2752.1,4.823368]
[1740085003247,5.36,2752.6,2752.2,3.63344]
[1740085003444,0.0075,2753.0,2752.1,4.823328]
[1740085003673,0.0075,2753.0,2752.1,1.189788]
[1740085003874,3.63254,2752.9,2752.3,3.63326]
[1740085004041,3.63254,2752.9,2752.4,3.63316]
[1740085004453,0.015,2753.0,2752.4,7.26627]
[1740085004768,0.015,2753.0,2752.3,0.8456368]
[1740085004970,3.64741,2753.0,2752.4,3.63312]
[1740085005171,3.64741,2753.0,2752.4,3.63311]
[1740085005667,7.2799,2753.0,2752.4,3.63311]
[1740085005869,3.015,2753.0,2752.2,3.63332]
[1740085006036,3.63253,2752.9,2752.2,7.26665]
[1740085006370,3.63253,2752.9,2752.3,0.8456438]
[1740085006539,6.64742,2753.0,2752.3,0.8456438]
[1740085006737,3.63257,2752.9,2752.3,4.4789638]
[1740085006937,3.015,2753.0,2752.4,3.63311]
[1740085007251,6.6474,2753.0,2752.4,7.26622]
[1740085007568,3.0,2753.0,2752.6,4.44426]
[1740085008945,3.0,2753.0,2752.4,1.57768638]
[1740085009151,3.63269,2752.8,2752.4,0.7665]
[1740085011367,6.63241,2753.0,2752.4,4.39969]
[1740085011577,3.63254,2752.9,2752.4,4.39969]
[1740085014168,3.0,2753.0,2752.4,4.39969]
[1740085014374,3.0,2753.0,2752.5,3.63303]
[1740085014567,6.63252,2753.0,2752.4,4.39968]
[1740085015475,3.0,2753.0,2752.4,0.7665]
[1740085016072,3.63285,2752.7,2752.0,4.36973732]
[1740085016370,0.015,2752.9,2752.2,0.7681]
[1740085016371,3.63313,2752.5,2752.2,0.7681]
[1740085016573,3.63319,2752.4,2752.0,0.7635]
[1740085016962,3.63307,2752.5,2752.0,4.39721]
[1740085017162,3.64045,2752.6,2752.1,3.63349]
[1740085017342,0.0075,2752.6,2752.1,3.63358]
[1740085017542,0.0075,2752.6,2752.2,3.63339]
[1740085018377,5.36,2752.7,2752.2,4.436397]
[1740085018553,5.36,2752.7,2752.3,4.39682]
[1740085018755,5.36,2752.7,2752.3,8.03005]
[1740085018967,0.0488,2752.4,2752.3,4.39673]
[1740085022458,0.0488,2752.4,2752.3,0.7635]
[1740085022870,0.0488,2752.4,2752.0,0.7542]
[1740085023078,3.682,2752.4,2751.9,3.63382]
[1740085024300,3.682,2752.4,2751.8,0.7542]
[1740085024579,0.7554,2752.3,2751.8,0.7542]
[1740085024783,3.64103,2752.2,2751.6,0.7802]
[1740085024984,3.40561459,2752.2,2751.6,0.7802]
[1740085025163,3.63378,2752.0,2751.4,3.63442]
[1740085025352,5.36,2752.0,2751.5,3.63431]
[1740085025746,5.36,2752.0,2751.3,4.67976]
[1740085025946,10.23451046,2752.0,2751.3,4.67976]
[1740085026172,3.63405,2751.8,2751.3,4.67976]
[1740085026487,3.63412,2751.7,2751.3,0.265]
[1740085027490,3.63405,2751.8,2751.3,0.265]
[1740085027780,3.63405,2751.8,2751.3,3.8996]
[1740085028161,3.64155,2751.8,2751.3,0.265]
[1740085028356,5.10418805,2751.8,2751.3,0.265]
[1740085028559,3.63419,2751.7,2751.3,0.265]
[1740085028759,3.63425,2751.6,2751.1,1.04798952]
[1740085028974,3.63425,2751.6,2751.1,0.78298952]
[1740085029387,4.14468881,2751.6,2751.1,0.78298952]
[1740085029552,3.63447,2751.5,2751.1,0.78298952]
[1740085029955,3.63447,2751.5,2751.1,0.78298952]
[1740085030179,4.40127,2751.5,2751.1,0.78298952]
[1740085030691,4.40126,2751.5,2751.1,0.78298952]
[1740085031957,3.63471,2751.3,2751.1,0.78298952]
[1740085032155,8.99471,2751.3,2751.0,0.825]
[1740085032583,5.36,2751.3,2751.0,0.825]
[1740085033367,8.99475,2751.3,2751.0,0.825]
[1740085033550,10.31320457,2751.3,2751.0,0.825]
[1740085033755,3.63484,2751.2,2751.0,0.825]
[1740085034384,3.6349,2751.1,2751.0,0.825]
[1740085034587,3.6424,2751.1,2751.0,0.825]
[1740085034889,4.3955,2751.1,2751.0,0.825]
[1740085035057,5.85813805,2751.1,2751.0,0.825]
[1740085035686,8.85813805,2751.1,2751.0,0.825]
[1740085036186,4.47013805,2751.1,2751.0,0.825]
[1740085036393,5.36,2751.3,2751.1,3.63484]
[1740085036564,5.36,2751.3,2751.0,5.27866]
[1740085036888,5.36,2751.3,2751.0,1.6437]
[1740085037292,5.36,2751.3,2751.1,3.6349]
[1740085037468,5.36,2751.3,2751.0,1.6437]
[1740085037871,3.63477,2751.2,2751.0,1.6437]
[1740085038667,3.6349,2751.1,2751.0,0.825]
[1740085038869,4.4715,2751.1,2751.0,0.825]
[1740085039280,7.4715,2751.1,2751.0,0.825]
[1740085040195,7.479,2751.1,2751.0,0.825]
[1740085040373,9.51393616,2751.1,2751.0,0.825]
[1740085040572,14.87393616,2751.1,2751.0,0.825]
[1740085041890,3.63618,2750.2,2750.0,8.427]
[1740085042078,3.63618,2750.2,2750.0,0.265]
[1740085042256,3.63618,2750.2,2749.7,3.63669]
[1740085042460,3.63599,2750.3,2749.8,3.63656]
[1740085042685,3.63599,2750.3,2749.8,3.90156]
[1740085042880,5.36,2750.5,2750.1,0.7913]
[1740085043079,5.36,2750.5,2750.1,4.42752]
[1740085043911,8.99573,2750.5,2750.1,0.7913]
[1740085044108,5.36,2750.5,2750.1,0.7913]
[1740085044312,5.36,2750.5,2750.1,4.42745]
[1740085044493,5.36,2750.5,2750.2,3.636]
[1740085045215,5.36,2750.5,2750.1,0.7913]
[1740085045679,6.63543,2750.7,2750.2,7.27202]
[1740085045862,6.63543,2750.7,2750.2,3.636]
[1740085046058,6.63543,2750.7,2750.3,3.63596]
[1740085046328,5.36,2750.8,2750.6,3.63547]
[1740085046459,5.36,2750.8,2750.3,4.442256]
[1740085046660,5.36,2750.8,2750.4,3.63575]
[1740085047667,5.36,2750.8,2750.5,3.63566]
[1740085047867,5.36,2750.8,2750.4,3.63571]
[1740085048067,5.36,2750.8,2750.5,3.63562]
[1740085048400,5.36,2750.8,2750.4,0.4442036]
[1740085048588,3.63553,2750.7,2750.1,4.4275]
[1740085048784,3.63553,2750.7,2750.1,0.7913]
[1740085048986,3.63576,2750.5,2750.2,0.265]
[1740085049179,3.63605,2750.3,2750.1,0.7913]
[1740085049374,3.63609,2750.2,2750.1,0.7913]
[1740085049875,3.63609,2750.2,2749.8,0.72838836]
[1740085049876,3.6363,2750.1,2749.8,0.8321]
[1740085050200,3.63642,2750.0,2749.8,0.8321]
[1740085050407,3.6363,2750.1,2749.8,0.8321]
[1740085050593,3.63616,2750.2,2749.8,0.8321]
[1740085050777,3.63593,2750.4,2749.8,0.8321]
[1740085050982,3.63603,2750.3,2749.8,4.46866]
[1740085051195,5.36,2750.5,2749.8,1.37717662]
[1740085051196,3.63624,2750.1,2749.8,1.37717662]
[1740085051605,3.63615,2750.2,2749.8,1.37717662]
[1740085052113,7.27236,2750.2,2749.8,1.37717662]
[1740085052282,3.63615,2750.2,2749.8,1.37717662]
[1740085053406,3.63599,2750.3,2749.8,1.37717662]
[1740085053620,3.63616,2750.2,2749.9,0.59959029]
[1740085053890,3.63616,2750.2,2749.8,0.8321]
[1740085054198,3.63631,2750.1,2749.8,0.8321]
[1740085054532,7.27265,2750.1,2749.8,0.8321]
[1740085054713,3.63631,2750.1,2749.9,0.265]
[1740085055233,3.63649,2749.9,2749.8,1.0971]
[1740085055534,3.63649,2749.9,2749.8,0.8321]
[1740085055900,3.63649,2749.9,2749.6,1.056]
[1740085056229,3.63601,2750.3,2749.4,4.13035296]
[1740085056230,4.43405,2750.1,2749.4,1.28421296]
[1740085056430,3.63666,2749.8,2749.4,1.28421296]
[1740085056739,3.63676,2749.7,2749.4,1.28421296]
[1740085057034,3.63663,2749.8,2749.4,1.28421296]
[1740085057401,4.079805,2750.0,2749.4,1.28421296]
[1740085057608,3.63665,2749.8,2749.4,1.28421296]
[1740085057812,3.63651,2749.9,2749.4,4.92136296]
[1740085058230,4.079775,2750.0,2749.4,8.55840296]
[1740085058435,3.63669,2749.8,2749.4,1.28421296]
[1740085059029,0.443405,2750.0,2749.4,1.28421296]
[1740085059243,3.63681,2749.7,2749.4,0.49321296]
[1740085059546,3.63702,2749.5,2749.4,0.49321296]
[1740085059708,3.6369,2749.6,2749.4,0.49321296]
[1740085060109,3.63686,2749.7,2749.4,0.49321296]
[1740085060309,3.63697,2749.6,2749.4,0.49321296]
[1740085060524,3.63702,2749.5,2749.4,0.49321296]
[1740085061526,3.63689,2749.6,2749.4,0.49321296]
[1740085061749,3.63702,2749.5,2749.4,0.49321296]
[1740085062045,1.339797,2749.7,2749.4,0.49321296]
[1740085062046,4.976677,2749.7,2749.4,0.49321296]
[1740085062446,3.0,2749.8,2749.5,3.63691]
[1740085062647,5.36,2749.9,2749.5,4.43856]
[1740085063536,3.63638,2750.0,2749.5,4.43856]
[1740085063740,3.63638,2750.0,2749.5,0.8016]
[1740085064046,4.613298,2750.0,2749.5,0.8016]
[1740085064249,4.613298,2750.0,2749.5,4.70361]
[1740085064627,0.0075,2749.3,2748.2,0.8526]
[1740085064945,0.0075,2749.3,2748.9,3.63781]
[1740085064946,11.76561459,2749.3,2748.9,3.63781]
[1740085065153,13.38808005,2749.3,2748.8,0.150466]
[1740085065359,13.62732546,2749.3,2748.8,0.150466]
[1740085065541,3.63752,2749.2,2748.8,0.150466]
[1740085065859,13.62732546,2749.3,2748.8,0.150466]
[1740085066153,9.98246546,2749.3,2748.8,0.150466]
[1740085066358,8.99729,2749.3,2748.8,3.788396]
[1740085066649,5.36,2749.3,2748.8,0.150466]
[1740085066850,5.36,2749.3,2749.2,3.63742]
[1740085067057,5.36,2749.3,2749.2,4.41482]
[1740085067555,3.8286,2749.7,2749.1,3.63749]
[1740085067760,0.94655887,2749.6,2749.1,3.63749]
[1740085067959,4.58346887,2749.6,2749.0,0.267]
[1740085068123,8.22045887,2749.6,2749.0,3.90467]
[1740085068327,3.63703,2749.5,2749.0,3.90468]
[1740085068637,4.58344887,2749.6,2749.1,3.63743]
[1740085069523,4.58344887,2749.6,2749.0,3.90466]
[1740085070136,4.58344887,2749.6,2749.1,3.63752]
[1740085070957,4.58344887,2749.6,2749.1,3.63753]
[1740085071131,4.47831489,2749.5,2748.9,0.266]
[1740085071336,4.47831489,2749.5,2748.9,3.90373]
[1740085071337,4.45618,2749.4,2748.9,3.90373]
[1740085071981,0.819,2749.4,2748.9,7.54147]
[1740085072262,0.819,2749.4,2748.9,7.54144]
[1740085072757,0.819,2749.4,2748.9,7.54143]
[1740085073357,0.819,2749.4,2748.9,3.90371]
[1740085074858,4.45618,2749.4,2748.9,0.266]
[1740085075061,1.34584967,2749.4,2748.9,3.9038]
[1740085075360,1.34584967,2749.4,2749.0,3.63761]
[1740085076161,1.34584967,2749.4,2749.0,3.63768]
[1740085076386,0.819,2749.6,2748.9,3.906]
[1740085076560,3.0,2749.7,2749.0,4.39698]
[1740085077060,6.6368,2749.7,2749.1,3.63749]
[1740085078069,6.6368,2749.7,2749.0,8.0346]
[1740085078070,3.63692,2749.6,2749.0,8.0346]
[1740085078234,3.63692,2749.6,2749.0,4.39692]
[1740085078434,5.282942,2749.6,2749.0,4.39691]
[1740085078630,5.282942,2749.6,2749.0,8.03451]
[1740085078833,5.04413659,2749.6,2748.8,0.909766]
[1740085079026,0.819,2749.5,2748.9,0.265]
[1740085079367,4.45613,2749.5,2748.9,3.90275]
[1740085079565,5.7300282,2749.5,2748.9,3.90275]
[1740085079865,2.0928982,2749.5,2749.1,3.63749]
[1740085080167,3.0,2749.7,2749.1,3.63749]
[1740085080168,7.40037,2749.7,2749.1,4.46049]
[1740085080376,7.40037,2749.7,2749.2,3.63741]
[1740085080572,11.03721,2749.7,2749.1,0.823]
[1740085080772,0.0075,2749.6,2749.0,3.63756]
[1740085080967,7.40037,2749.7,2749.0,3.63756]
[1740085080968,0.7636,2749.7,2749.0,3.63756]
[1740085081167,0.7636,2749.7,2748.9,0.265]
[1740085081168,0.7636,2749.7,2749.3,3.63716]
[1740085081689,3.6369,2749.6,2748.9,1.0672]
[1740085081891,3.6369,2749.6,2748.9,4.70494]
[1740085082190,3.63709,2749.5,2749.0,0.266]
[1740085082477,3.64452,2749.6,2749.0,3.90366]
[1740085082771,0.7599,2750.3,2749.2,4.21961459]
[1740085082973,0.7599,2750.7,2749.7,0.8215]
[1740085083143,0.7599,2750.7,2749.5,3.39811459]
[1740085083144,0.8183,2750.3,2749.8,0.273]
[1740085083334,0.0075,2750.1,2749.5,3.63691]
[1740085083542,0.0075,2750.1,2749.4,1.52815249]
[1740085083543,0.8183,2749.9,2749.4,3.91015]
[1740085083742,4.45482,2749.9,2749.4,0.273]
[1740085084043,0.8183,2749.9,2749.4,0.273]
[1740085084241,0.8183,2749.9,2749.5,3.63702]
[1740085084459,0.8183,2749.9,2749.4,0.273]
[1740085084672,1.628893,2749.9,2749.4,0.273]
[1740085084885,1.628893,2749.9,2749.4,3.9101]
[1740085085085,1.628893,2749.9,2749.4,0.273]
[1740085085673,0.7678,2750.1,2749.7,3.63667]
[1740085085896,0.7678,2750.1,2749.6,3.63684]
[1740085086076,0.7678,2750.1,2749.5,0.7641]
[1740085086377,0.7678,2750.1,2749.3,3.63723]
[1740085086378,3.63651,2749.9,2749.3,3.63723]
[1740085086555,0.8127,2749.8,2749.5,0.273]
[1740085086753,0.444921,2749.7,2749.5,0.273]
[1740085087757,3.63697,2749.6,2749.2,0.273]
[1740085087963,0.444921,2749.7,2749.2,0.273]
[1740085087964,0.8156,2749.5,2749.2,0.273]
[1740085088303,0.1488,2749.3,2749.2,0.273]
[1740085088654,0.1488,2749.3,2749.0,3.63761]
[1740085088855,0.1488,2749.3,2749.0,0.273]
[1740085089376,0.1488,2749.3,2749.2,4.39012]
[1740085091680,0.1488,2749.3,2749.2,5.11983388]
[1740085095965,0.1488,2749.3,2749.2,5.66983388]
[1740085098480,0.1488,2749.3,2749.2,5.11983388]
[1740085099596,0.1488,2749.3,2749.2,5.39183388]
[1740085099793,0.1488,2749.3,2749.2,7.08323839]
[1740085103068,0.1488,2749.3,2749.1,7.27743]
[1740085103273,0.1488,2749.3,2749.2,0.272]
[1740085104070,0.1488,2749.3,2749.2,3.90942]
[1740085108175,0.1488,2749.3,2749.2,3.90842]
[1740085117493,0.1488,2749.3,2749.2,4.68642]
[1740085117692,0.1488,2749.3,2749.2,5.95456145]
[1740085117890,0.1488,2749.3,2749.2,5.17656145]
[1740085120089,0.1488,2749.3,2749.2,3.90842]
[1740085121646,0.1488,2749.3,2749.2,3.90642]
[1740085122429,0.1488,2749.3,2749.2,7.30453459]
[1740085123531,0.1488,2749.3,2749.2,8.68293459]
[1740085128036,0.1488,2749.3,2749.2,3.63742]
[1740085128238,0.1488,2749.3,2749.2,3.90642]
[1740085129504,0.1488,2749.3,2749.2,3.63742]
[1740085129706,0.1488,2749.3,2749.2,3.90642]
[1740085130849,0.1488,2749.3,2749.1,7.27753]
[1740085131003,0.1488,2749.3,2749.2,0.268]
[1740085131518,0.1488,2749.3,2749.2,3.90542]
[1740085131718,0.1488,2749.3,2749.2,0.268]
[1740085132338,0.603903,2749.3,2749.2,0.268]
[1740085133245,0.603903,2749.3,2748.9,4.34921028]
[1740085133410,0.603903,2749.3,2749.0,0.269]
[1740085133611,0.603903,2749.3,2748.9,4.34921028]
[1740085133814,0.603903,2749.3,2749.0,0.269]
[1740085134028,0.1488,2749.3,2749.0,0.269]
[1740085135016,0.1488,2749.3,2749.0,3.90668]
[1740085136250,0.1488,2749.3,2749.2,3.63742]
[1740085138138,0.1488,2749.3,2749.2,4.18742]
[1740085138340,0.1488,2749.3,2749.2,4.99772]
[1740085138540,0.1488,2749.3,2749.2,6.59195046]
[1740085139350,3.63636,2750.1,2750.0,3.63636]
[1740085139351,0.7978,2750.1,2750.0,3.63636]
[1740085139557,0.1,2751.5,2750.3,3.63596]
[1740085139558,0.7978,2750.4,2750.3,3.63596]
[1740085139725,0.0075,2750.9,2750.5,3.63562]
[1740085139918,0.7978,2750.8,2750.3,3.63589]
[1740085140333,0.7978,2750.8,2750.3,3.63595]
[1740085140757,0.7978,2750.8,2750.4,3.63582]
[1740085140964,0.7978,2750.8,2750.6,3.63549]
[1740085141170,0.7978,2750.8,2750.4,7.27153]
[1740085141369,0.7978,2750.8,2750.5,3.63561]
[1740085141566,0.7978,2750.8,2750.7,3.63543]
[1740085141777,0.7978,2750.8,2750.6,3.63557]
[1740085143179,0.7978,2750.8,2750.5,3.638]
[1740085143180,0.7978,2750.8,2750.5,7.27367]
[1740085143348,0.7978,2750.8,2750.6,3.63555]
[1740085143985,0.7978,2750.8,2750.5,3.638]
[1740085144162,0.7978,2750.8,2750.5,7.27369]
[1740085144339,0.7978,2750.8,2750.5,10.90932]
[1740085144535,0.7978,2750.8,2750.5,7.27363]
[1740085144858,0.7978,2750.8,2750.5,7.27362]
[1740085145047,0.8249,2751.1,2750.5,5.5650611]
[1740085145252,0.8249,2751.1,2750.6,3.63557]
[1740085145641,0.756,2751.4,2751.0,7.03306459]
[1740085145839,0.756,2751.4,2751.2,3.63477]
[1740085146149,0.756,2751.4,2751.1,3.90288]
[1740085146541,0.756,2751.4,2751.1,4.64433517]
[1740085146743,0.756,2751.4,2751.2,3.63466]
[1740085146941,0.756,2751.4,2751.1,4.64424517]
[1740085147163,0.756,2751.4,2751.1,8.27906517]
[1740085147341,0.756,2751.4,2751.1,4.64424517]
[1740085147548,0.7854,2751.7,2751.3,3.63457]
[1740085147748,1.16469,2751.7,2751.4,3.63443]
[1740085147952,1.16469,2751.7,2751.3,7.26914]
[1740085148152,5.36,2752.1,2751.6,3.39811459]
[1740085148342,0.7854,2752.0,2751.5,3.63434]
[1740085148743,0.7854,2752.0,2751.6,0.268]
[1740085149674,0.7854,2752.0,2751.7,0.268]
[1740085150652,0.7854,2752.0,2751.8,3.63398]
[1740085150858,6.1561,2752.2,2751.8,3.63398]
[1740085151181,6.77659,2752.2,2751.8,3.63398]
[1740085151355,6.1486,2752.2,2751.8,3.63398]
[1740085151542,6.1486,2752.2,2752.0,3.63371]
[1740085151747,0.7886,2752.2,2752.0,3.63363]
[1740085151980,0.8224,2752.4,2752.0,3.63363]
[1740085152553,0.8224,2752.4,2752.1,3.63358]
[1740085152759,0.0488,2752.4,2752.2,7.03148459]
[1740085153179,0.0488,2752.4,2752.2,7.26674]
[1740085153382,0.0488,2752.4,2752.3,3.63332]
[1740085154177,0.0488,2752.4,2752.3,5.13668441]
[1740085155365,0.0488,2752.4,2752.3,0.267]
[1740085155680,0.0488,2752.4,2752.2,3.63345]
[1740085155882,0.0488,2752.4,2752.3,0.267]
[1740085156056,0.0488,2752.4,2752.1,3.636]
[1740085156250,3.64129,2752.0,2751.7,8.165]
[1740085156451,4.078539,2751.9,2751.7,8.165]
[1740085156646,0.8048,2752.1,2751.8,3.63398]
[1740085156850,0.8048,2752.1,2751.9,3.63385]
[1740085157045,0.8048,2752.1,2751.8,3.61811459]
[1740085157259,0.0075,2752.0,2751.8,0.268]
[1740085157482,0.8048,2752.1,2751.8,0.268]
[1740085157683,5.36,2752.3,2751.8,3.66611459]
[1740085157849,5.36,2752.3,2752.0,3.63371]
[1740085158260,5.36,2752.3,2751.8,3.66611459]
[1740085158465,5.36,2752.3,2752.1,3.63349]
[1740085159368,5.36,2752.3,2751.9,35.0]
[1740085159369,0.0488,2752.4,2752.2,3.39811459]
[1740085159560,0.0488,2752.4,2752.3,3.63332]
[1740085160351,0.0488,2752.4,2752.2,3.636]
[1740085160873,0.0488,2752.4,2752.3,0.269]
[1740085161252,0.0488,2752.4,2752.2,7.26938]
[1740085161448,0.0488,2752.4,2752.3,0.269]
[1740085161649,0.0488,2752.4,2751.8,4.46649]
[1740085161650,4.057664,2752.4,2751.8,7.2678]
[1740085161853,4.050164,2752.4,2751.9,0.269]
[1740085162180,4.050254,2752.4,2751.9,0.269]
[1740085162385,0.416974,2752.4,2751.9,0.269]
[1740085162565,0.7888,2752.2,2751.9,0.269]
[1740085162755,0.7888,2752.2,2751.9,3.90284]
[1740085163157,0.0488,2752.4,2752.3,3.63332]
[1740085164271,0.0488,2752.4,2752.3,38.63332]
[1740085164474,0.0488,2752.4,2752.2,3.63337]
[1740085164682,0.0488,2752.4,2752.3,3.63332]
[1740085164874,0.0488,2752.4,2752.2,3.63337]
[1740085165189,0.0488,2752.4,2752.1,3.636]
[1740085165389,0.0488,2752.4,2752.0,0.269]
[1740085165390,4.808604,2752.4,2752.0,0.269]
[1740085165706,4.808604,2752.4,2752.1,3.63357]
[1740085165707,1.175374,2752.4,2752.1,3.63357]
[1740085165857,1.175374,2752.4,2752.0,3.9026]
[1740085166256,4.808584,2752.4,2752.0,0.269]
[1740085166454,3.63361,2752.1,2751.6,3.90317]
[1740085166653,9.8375784,2752.3,2751.7,3.6341]
[1740085166882,9.8375784,2752.3,2751.6,3.90317]
[1740085167157,9.8375784,2752.3,2751.8,3.63395]
[1740085167481,5.36,2752.3,2752.2,3.63345]
[1740085167678,0.8072,2752.4,2752.1,3.63356]
[1740085168083,0.0488,2752.4,2752.2,3.63342]
[1740085168390,0.0488,2752.4,2752.0,3.63365]
[1740085168696,4.40103,2752.3,2751.8,3.63389]
[1740085168889,4.40103,2752.3,2751.8,7.26779]
[1740085169082,1.575989,2752.3,2751.9,35.0]
[1740085169277,5.209349,2752.3,2751.8,7.97829075]
[1740085169611,5.209389,2752.3,2751.8,4.34439075]
[1740085169755,5.209389,2752.3,2751.8,39.34439075]
[1740085169959,3.63355,2752.2,2751.8,35.71050075]
[1740085170179,3.63355,2752.2,2751.8,38.63395]
[1740085170390,0.0075,2752.1,2751.8,35.0]
[1740085170578,0.0075,2752.1,2751.8,0.269]
[1740085170776,0.5258339,2752.2,2751.8,3.90297]
[1740085170976,0.0488,2752.4,2751.9,35.0]
[1740085171168,0.0488,2752.4,2752.0,3.63372]
[1740085171371,0.0488,2752.4,2752.1,3.63353]
[1740085171877,0.0488,2752.4,2752.1,35.0]
[1740085172094,0.0488,2752.4,2752.1,38.63346]
[1740085172293,0.0488,2752.4,2752.1,38.63358]
[1740085172659,0.0488,2752.4,2752.2,3.63342]
[1740085172854,0.0488,2752.4,2752.1,3.63438]
[1740085173082,0.0488,2752.4,2752.1,0.0008]
[1740085173282,0.0488,2752.4,2752.1,35.0008]
[1740085173492,0.0488,2752.4,2752.2,3.63335]
[1740085173662,0.0488,2752.4,2752.1,38.63438]
[1740085173854,0.0488,2752.4,2752.2,3.63343]
[1740085174060,0.0488,2752.4,2752.1,3.63437]
[1740085174390,0.0488,2752.4,2752.2,3.63345]
[1740085174908,0.0488,2752.4,2752.1,0.0008]
[1740085175074,0.0488,2752.4,2752.2,3.63338]
[1740085175259,0.0488,2752.4,2752.2,4.3542632]
[1740085175966,0.0488,2752.4,2752.2,0.7208832]
[1740085176471,0.0488,2752.4,2752.2,4.3542732]
[1740085177092,0.0488,2752.4,2752.3,3.63332]
[1740085177297,0.0488,2752.4,2752.2,0.7208832]
[1740085177480,0.0488,2752.4,2752.1,0.0008]
[1740085177681,0.368196,2752.3,2752.1,0.0008]
[1740085177903,0.0488,2752.4,2752.2,3.63345]
[1740085178100,0.0488,2752.4,2752.1,3.63428]
[1740085180514,0.0488,2752.4,2752.1,0.0008]
[1740085181184,0.0488,2752.4,2752.1,3.63438]
[1740085181380,0.0488,2752.4,2752.1,0.2688]
[1740085181586,0.0488,2752.4,2752.2,3.63344]
[1740085181787,0.0488,2752.4,2752.1,3.90235]
[1740085182915,0.0488,2752.4,2752.1,0.2688]
[1740085183113,3.682,2752.4,2752.1,0.2688]
[1740085183411,3.63344,2752.3,2752.1,0.0008]
[1740085183617,0.7505,2752.2,2752.1,0.0116]
[1740085184215,4.39145,2752.2,2752.1,0.0116]
[1740085184430,9.77455,2752.2,2752.1,0.0116]
[1740085184738,12.77455,2752.2,2752.1,0.0116]
[1740085184880,14.5014923,2752.2,2752.1,0.0116]
[1740085185419,10.8605423,2752.2,2752.1,0.0116]
[1740085185594,14.4939923,2752.2,2752.1,0.0116]
[1740085187386,10.8530423,2752.2,2752.1,0.0116]
[1740085187617,9.1261,2752.2,2752.1,0.0116]
[1740085187833,12.76705,2752.2,2752.1,0.0116]
[1740085189922,9.1261,2752.2,2752.1,0.0116]
[1740085190246,9.1336,2752.2,2752.1,0.0116]
[1740085190384,12.76705,2752.2,2752.1,0.0116]
[1740085190589,9.1336,2752.2,2752.1,0.0116]
[1740085191918,12.76705,2752.2,2752.1,0.0116]
[1740085192488,9.1336,2752.2,2752.1,0.0116]
[1740085193290,12.76705,2752.2,2752.1,0.0116]
[1740085193527,14.4932303,2752.2,2752.1,0.0116]
[1740085193727,6.1261,2752.2,2752.1,3.64518]
[1740085193904,6.1261,2752.2,2752.1,0.0116]
[1740085194305,0.7661,2752.2,2752.1,0.0116]
[1740085194825,0.7661,2752.2,2752.1,35.0116]
[1740085195303,0.7736,2752.2,2752.1,0.0116]
[1740085195652,0.0488,2752.4,2752.3,3.63332]
[1740085195951,0.0488,2752.4,2752.3,4.41962]
[1740085196110,0.0488,2752.4,2752.3,4.96962]
[1740085196794,0.809,2753.7,2753.3,3.6319]
[1740085197196,4.44049,2753.7,2753.2,3.63209]
[1740085197400,4.44049,2753.7,2753.1,3.90018]
[1740085197930,3.63923,2753.6,2753.1,0.268]
[1740085198230,0.0075,2753.4,2753.1,0.268]
[1740085198998,3.63949,2753.4,2753.1,0.268]
[1740085199198,2.152923,2753.7,2753.1,0.268]
[1740085199428,2.152923,2753.7,2753.2,7.26411]
[1740085199429,0.809,2753.7,2753.2,7.26411]
[1740085199627,0.809,2753.7,2753.2,3.63205]
[1740085199828,8.99878,2753.9,2753.4,3.63179]
[1740085199829,5.36,2753.9,2753.4,3.63179]
[1740085200332,0.7579,2754.0,2753.9,3.63121]
[1740085200640,0.55,2754.1,2753.8,3.63126]
[1740085200943,0.55,2754.1,2753.9,0.268]
[1740085201110,0.0075,2753.9,2753.3,0.7767]
[1740085201429,5.36,2754.0,2753.4,1.01113736]
[1740085201630,4.18101,2754.1,2753.4,1.01113736]
[1740085201631,4.41605,2753.8,2753.4,1.01113736]
[1740085201833,4.41605,2753.8,2753.4,0.268]
[1740085202036,0.7847,2753.8,2753.4,0.268]
[1740085202233,3.63169,2753.6,2753.4,0.268]
[1740085202532,0.0075,2754.0,2753.4,7.29795459]
[1740085202833,3.63866,2754.0,2753.4,3.89984]
[1740085203041,3.63866,2754.0,2753.4,7.54233]
[1740085203242,3.63866,2754.0,2753.4,3.91049]
[1740085203532,0.800986,2753.9,2753.4,0.2787]
[1740085203711,3.0,2753.8,2753.4,0.2787]
[1740085203915,3.0,2753.8,2753.4,0.0107]
[1740085204110,3.8114,2753.5,2753.4,0.2805]
[1740085204431,7.44314,2753.5,2753.4,0.0115]
[1740085204604,8.550618,2753.5,2753.4,0.0115]
[1740085205001,1.918878,2753.5,2753.4,0.0115]
[1740085205209,0.8212,2754.0,2753.4,0.0115]
[1740085205526,0.8212,2754.0,2753.9,3.63121]